Cogmind - Beta 15 @@@ ROGUE MODE // 2025.06.04 @ 21:56:25 Player: 7604 Result: Destroyed by P-60 Hacker with Shock Rifle Performance ------------- Evolutions (4) 2000 Regions Visited (6) 1200 Robots Destroyed (63) 315 Value Destroyed (1957) 1957 Prototype IDs (35) 700 Alien Tech Used (0) 0 Bonus (414) 414 TOTAL SCORE: 6586 Bonus ------- High Alert Combat Kills 95 Follower Combat Kills 30 Registered with UFD 300 Friendly Fire -11 Cogmind --------- Core Integrity 0/850 Matter 285/300 Energy 85/100 System Corruption 13% Temperature Cool (4) Movement Hovering (77) Location -6/Factory Parts ------- > --- POWER (1) -------- (None) > --- PROPULSION (5) --- Combat Airjet Combat Airjet > --- UTILITY (7) ------ Enhanced Optical Array Advanced Melee Analysis Suite Weapon Mount Improved Armor Integrity Analyzer Hacking Suite > --- WEAPON (2) ------- Companion Sword > --- INVENTORY (5) ---- Experimental Terrain Scan Processor Long-range Missile Launcher Multitool Peak State ------------ > --- POWER ------------ Light Angular Momentum Engine > --- PROPULSION ------- Gravmag System Gravmag System VTOL Module Improved Cesium-ion Thruster Nuclear Pulse Thruster > --- UTILITY ---------- Advanced Melee Analysis Suite Advanced Melee Analysis Suite Advanced Melee Analysis Suite Advanced Melee Analysis Suite Advanced Melee Analysis Suite Improved Armor Integrity Analyzer Improved Light Armor Plating > --- WEAPON ----------- Improved Heavy Laser Companion Sword > --- INVENTORY -------- Carbon-fiber Leg Experimental Terrain Scan Processor Improved Grenade Launcher Multitool [Rating: 73] Favorites ----------- Power Subdweller Power Source Engine Subdweller Power Source Power Core Light Fission Core Propulsion Light Treads Treads Light Treads Leg Aluminum Leg Wheel Subdweller Monowheel Hover Unit Gravmag System Flight Unit Improved VTOL Module Utility Seismic Detector Device Seismic Detector Storage High-capacity Storage Unit Processor Advanced Melee Analysis Suite Hackware Hacking Suite Protection Improved Light Armor Plating Weapon Datajack Energy Gun Subdweller Laser Ballistic Gun Assault Rifle Ballistic Cannon Light Cannon Launcher Grenade Launcher Special Weapon Multitool Impact Weapon Hammer Slashing Weapon Companion Sword Special Melee Weapon Datajack Build | -11 -10 -10 -8 -6 -6 -6 ------- Run | Yrd Mat Sub Scr Fac Was Fac Slots Evolved 8 | . . . . 8 . . Power . | . . . . . . . Propulsion 3 | . . . . 3 . . Utility 5 | . . . . 5 . . Weapon . | . . . . . . . Parts Attached 82 | 1 8 11 9 3 3 47 Power 7 | . . 2 1 . . 4 Engine 6 | . . 2 1 . . 3 Core 1 | . . . . . . 1 Reactor . | . . . . . . . Propulsion 30 | . 2 2 4 1 . 21 Treads 7 | . 2 2 2 1 . . Leg 6 | . . . . . . 6 Wheel 2 | . . . 2 . . . Hover 8 | . . . . . . 8 Flight 7 | . . . . . . 7 Utility 30 | 1 3 2 2 2 1 19 Device 10 | 1 1 1 1 1 . 5 Storage 3 | . 2 . 1 . . . Processor 10 | . . . . 1 1 8 Hackware 3 | . . . . . . 3 Protection 4 | . . 1 . . . 3 Artifact . | . . . . . . . Weapon 15 | . 3 5 2 . 2 3 Energy Gun 3 | . . 2 . . . 1 Energy Cannon . | . . . . . . . Ballistic Gun 3 | . 2 1 . . . . Ballistic Cannon 1 | . . 1 . . . . Launcher 2 | . . . . . 2 . Special Weapon 2 | . 1 . . . . 1 Impact Weapon 1 | . . 1 . . . . Slashing Weapon 1 | . . . 1 . . . Piercing Weapon . | . . . . . . . Special Melee Weapon 2 | . . . 1 . . 1 Unidentified Prototypes 5 | . . . 1 . . 4 Parts Lost 29 | . 1 4 . . 3 21 Power 2 | . . . . . . 2 Propulsion 13 | . . 2 . . 2 9 Utility 10 | . . . . . 1 9 Weapon 4 | . 1 2 . . . 1 Highest Loss Streak 8 | . 1 2 . . 3 8 To Critical Strikes . | . . . . . . . Average Backups 15 | 6 13 19 19 11 9 4 Power . | 1 1 1 . . . . Propulsion 3 | 4 4 4 3 . . . Utility 5 | . 3 6 7 6 4 1 Weapon 5 | 1 3 5 6 4 2 1 Tool/Special . | . . . . . . . Unused Backups 23 | . 2 4 7 . 4 6 Power 3 | . . 1 . . . 2 Propulsion 1 | . . . 1 . . . Utility 11 | . 2 1 2 . 3 3 Weapon 8 | . . 2 4 . 1 1 Tool/Special . | . . . . . . . Average Slot Usage (%) 96 | . 100 100 99 71 57 79 Engine 12 | . 14 14 13 6 3 4 Treads 20 | . 16 28 25 24 18 . Leg 3 | . 11 . . . . 7 Wheel 1 | . . . 2 . . . Hover 1 | . . . . . . 7 Flight 1 | . . . . . . 9 Device 11 | . 14 13 14 9 5 1 Storage 11 | . 14 14 14 6 3 . Processor 5 | . . . . 4 11 31 Energy Gun 3 | . . 14 . . . . Ballistic Gun 8 | . 27 7 5 . . . Slashing Weapon 4 | . . . 8 6 1 5 Special Melee Weapon 6 | . . . 13 6 1 1 Peak Build Rating 73 | 8 10 18 21 33 41 73 Average Rating 21 | 6 8 13 17 30 26 56 On Entrance 14 | 6 8 9 14 19 33 13 Naked Turns . | . . . . . . . Heaviest Build 57 | 15 50 57 53 36 39 21 Greatest Support 83 | 20 40 40 43 83 83 75 Greatest Overweight (x) 2 | . 1 1 2 . . 1 Average Overweight (x) . | . . 1 . . . . Largest Inventory Capacity 20 | 8 20 20 20 15 15 5 Average Capacity 16 | 8 15 20 19 15 10 5 Most Carried 20 | 8 18 20 20 14 15 5 Average Carried 15 | 6 13 19 19 10 9 4 Final Capacity 20 | 8 20 20 15 15 5 5 Final Carried 20 | 8 18 20 15 10 5 3 Class Distribution -------------------- 85% | Mutant 9% | Scavenger-Mutant Dominant Class ---------------- Mutant | -10/Materials Mutant | -10/Subcaves Mutant | -8/Scraptown Mutant | -6/Factory Mutant | -6/Waste Scavenger-Mutant | -6/Factory Resources | -11 -10 -10 -8 -6 -6 -6 ----------- Run | Yrd Mat Sub Scr Fac Was Fac Matter Collected 2055 | 234 441 444 90 . . 846 Remotely . | . . . . . . . Salvage Created 2469 | 47 528 302 . . . 1592 Parts 172 | 7 48 28 . . . 89 Haulers Intercepted 3 | . 2 . . . . 1 Recyclers Shooed . | . . . . . . . Parts Field Recycled . | . . . . . . . Retrieved Matter . | . . . . . . . Parts Self-Destructed 5 | . . 5 . . . . Prevented . | . . . . . . . Kills | -11 -10 -10 -8 -6 -6 -6 ------- Run | Yrd Mat Sub Scr Fac Was Fac Combat Hostiles Destroyed 42 | . 10 8 . . . 24 Melee 24 | . . . . . . 24 Guns 16 | . 10 6 . . . . Cannons 2 | . . 2 . . . . Classes Destroyed 15 | 1 6 2 . . . 6 Worker 1 | . . . . . . 1 Builder 5 | . 3 . . . . 2 Tunneler 6 | 2 . . . . . 4 Hauler 3 | . 2 . . . . 1 Mechanic 1 | . . . . . . 1 Operator 2 | . 1 . . . . 1 Watcher 2 | . 1 . . . . 1 Swarmer 9 | . 3 . . . . 6 Grunt 19 | . 7 . . . . 12 Duelist 1 | . . . . . . 1 Sentry 1 | . . . . . . 1 Hunter 3 | . . . . . . 3 Programmer 2 | . . . . . . 2 Artisan 1 | . . 1 . . . . Subdweller 8 | . . 8 . . . . Best Kill Streak 7 | 1 4 2 . . . 7 Combat Bots Only 7 | . 4 2 . . . 7 Max Kills in Single Turn 2 | 1 2 1 . . . 1 Gunslinging . | . . . . . . . Exploded . | . . . . . . . Melee 1 | . . . . . . 1 Uniques/NPCs Destroyed . | . . . . . . . Combat | -11 -10 -10 -8 -6 -6 -6 -------- Run | Yrd Mat Sub Scr Fac Was Fac Hostile Shots Fired 408 | . 44 47 . . 3 314 Missed 150 | . 9 13 . . 1 127 Hits 258 | . 35 34 . . 2 187 Melee 6 | . . . . . 2 4 Projectile 252 | . 35 34 . . . 183 AOE 1 | . . . . . . 1 Critical Strikes 13 | . 2 . . . 2 9 Damage Taken 4113 | . 470 734 . . 95 2814 Core 1037 | . 85 100 . . 54 798 Absorbed by Shields . | . . . . . . . Regen/Repaired (Parts) 76 | . . . . . . 76 Core Remaining (%) 63 | 100 . . 26 . . . Volleys Fired 111 | 4 53 45 . . 9 . Largest 2 | 2 2 2 . . 2 . Hottest 120 | 40 100 120 . . 66 . Shots Fired 204 | 8 105 74 . . 17 . Gun 164 | 8 104 52 . . . . Cannon 22 | . . 22 . . . . Launcher 17 | . . . . . 17 . Special 1 | . 1 . . . . . Kinetic 155 | 8 104 43 . . . . Thermal 20 | . 1 19 . . . . Explosive 17 | . . . . . 17 . Electromagnetic 12 | . . 12 . . . . Robot Hit Streak 17 | 2 11 17 . . . . Robot Miss Streak 3 | 3 3 2 . . . . Penetration Max . | . . . . . . . Secondary Targets 3 | . 2 1 . . . . Max Gunslinging Chain 1 | . 1 1 . . . . Shots Hit Robots 203 | 3 64 55 6 . . 75 Core Hits 95 | 2 30 21 . . 4 38 Critical Kills 1 | . 1 . . . . . Critical Parts Destroyed . | . . . . . . . Critical Strikes 1 | . 1 . . . . . Destroy 1 | . 1 . . . . . Melee Attacks 133 | . . 12 6 . . 115 Impact 12 | . . 12 . . . . Slashing 114 | . . . . . . 114 Piercing . | . . . . . . . Sneak Attacks 19 | . . . 6 . . 13 Combat Hostiles 1 | . . . . . . 1 Follow-up Attacks 1 | . . . . . . 1 Damage Inflicted 6922 | 36 855 794 . . 1278 3959 Guns 1413 | 36 827 550 . . . . Cannons 244 | . . 244 . . . . Explosions 1278 | . . . . . 1278 . Melee 3951 | . . . . . . 3951 Ramming 36 | . 28 . . . . 8 Kinetic 1331 | 36 827 468 . . . . Thermal 174 | . . 174 . . . . Explosive 1278 | . . . . . 1278 . Electromagnetic 152 | . . 152 . . . . Impact . | . . . . . . . Slashing 3951 | . . . . . . 3951 Piercing . | . . . . . . . Highest Corruption 13 | . . . . . 8 13 Average Corruption 9 | . . . . . 8 9 Corruption Purged . | . . . . . . . Corruption Blocked . | . . . . . . . Effects 61 | . . . . . 4 57 Message Errors 15 | . . . . . 2 13 Matter Fused 17 | . . . . . 1 16 Heat Flow Errors 5 | . . . . . . 5 Energy Discharges 11 | . . . . . . 11 Parts Rejected 2 | . . . . . . 2 Parts Fused 1 | . . . . . . 1 Data Loss (minor) 6 | . . . . . 1 5 Data Loss (major) 2 | . . . . . . 2 Alerts 1 | . . . . . . 1 Misdirections 1 | . . . . . . 1 Overload Shots . | . . . . . . . Overflow Damage 585 | . . . . . . 585 Projectiles . | . . . . . . . Explosions . | . . . . . . . Melee 585 | . . . . . . 585 Knockbacks 3 | . . 3 . . . . Impact . | . . . . . . . Kinetic 3 | . . 3 . . . . Secondary . | . . . . . . . Self-Inflicted Damage 3 | . . . . . . 3 Shots . | . . . . . . . Rammed 4 | . 2 . . . . 2 Targets Rammed 6 | 1 3 . . . . 2 Kicked 2 | 1 1 . . . . . Crushed . | . . . . . . . Highest Temperature 263 | . 26 45 . . . 263 Average Temperature 52 | . 9 16 . . . 82 Received Heat Transfer 783 | . 240 12 . . . 531 Siege Activations . | . . . . . . . Martial Activations . | . . . . . . . Shielding Activations . | . . . . . . . Robots Disrupted 3 | . . . . . . 3 Combat Hostiles 3 | . . . . . . 3 Robots Corrupted . | . . . . . . . Combat Hostiles . | . . . . . . . Parts Fried . | . . . . . . . Impact Corruptions . | . . . . . . . Robots Melted . | . . . . . . . Combat Hostiles . | . . . . . . . Parts Melted . | . . . . . . . Heat Transferred 225 | . . 225 . . . . Parts Sabotaged . | . . . . . . . Parts Stolen . | . . . . . . . Parts Stripped . | . . . . . . . Power Chain Reactions . | . . . . . . . Alert | -11 -10 -10 -8 -6 -6 -6 ------- Run | Yrd Mat Sub Scr Fac Was Fac Maximum Alert Level 2 | . . . . . . 2 Low Security (%) 74 | 100 100 . . 100 100 43 Level 1 19 | . . . . . . 43 Level 2 5 | . . . . . . 12 Level 3 . | . . . . . . . Level 4 . | . . . . . . . Level 5 . | . . . . . . . High Security . | . . . . . . . Max Security . | . . . . . . . Peak Influence 463 | 5 135 . . . 13 463 Initial . | . . . . . . . Average 110 | 1 25 . . . 2 215 Influence Increases 1757 | 10 411 . . . 19 1317 Destroy 0b10 Robot/C 680 | . 200 . . . . 480 Destroy 0b10 Robot/NC 100 | 10 35 . . . . 55 Destroy Leader 160 | . 56 . . . . 104 Successful Hack 88 | . 27 . . . . 61 Select Force Hacks 90 | . 60 . . . . 30 Disable Machine 30 | . . . . . . 30 Destroy Structure 54 | . 3 . . . 19 32 Partial Spotted 105 | . . . . . . 105 Lose Combat Pursuer 450 | . 30 . . . . 420 Influence Decreases 1362 | 10 411 . . . 19 922 Time Decay 972 | 10 401 . . . 19 542 Lost Part 220 | . 10 . . . . 210 Lost Ally 20 | . . . . . . 20 Purge Threat 150 | . . . . . . 150 Squads Dispatched 17 | . 3 . . . . 14 Investigation 11 | . 2 . . . . 9 Extermination 4 | . . . . . . 4 Reinforcement 2 | . 1 . . . . 1 Assault . | . . . . . . . Garrison . | . . . . . . . Intercept . | . . . . . . . Searches Triggered . | . . . . . . . Construction Impeded . | . . . . . . . Haulers Reinforced . | . . . . . . . Active Scanning Responses . | . . . . . . . Cargo Convoy Interrupts 1 | . . . . . . 1 Stealth | -11 -10 -10 -8 -6 -6 -6 --------- Run | Yrd Mat Sub Scr Fac Was Fac Distress Signals 4 | . 2 . . . . 2 Communications Jammed . | . . . . . . . Distress Signals . | . . . . . . . Times Spotted 115 | . 22 8 . . 5 80 Peak Tracking Total 17 | . 6 2 . . 4 17 Tactical Retreats 20 | . 1 . . . . 19 Traps | -11 -10 -10 -8 -6 -6 -6 ------- Run | Yrd Mat Sub Scr Fac Was Fac Traps Triggered 4 | . 2 . . 1 . 1 Indirectly . | . . . . . . . Trap Hack Attempts . | . . . . . . . Triggered . | . . . . . . . Disarmed . | . . . . . . . Reprogrammed 1 | . . . . . . 1 Reused . | . . . . . . . Traps Extracted . | . . . . . . . Installed . | . . . . . . . Triggered . | . . . . . . . Machines | -11 -10 -10 -8 -6 -6 -6 ---------- Run | Yrd Mat Sub Scr Fac Was Fac Machines Disabled 2 | . . . . . . 2 Max in Single Turn 1 | . . . . . . 1 Machines Repaired . | . . . . . . . Machines Dismantled . | . . . . . . . Machines Sabotaged . | . . . . . . . Overloaded Fab Kills . | . . . . . . . Hacking | -11 -10 -10 -8 -6 -6 -6 --------- Run | Yrd Mat Sub Scr Fac Was Fac Machines Accessed 33 | . 9 1 4 . . 19 Terminals 15 | . 7 . . . . 8 Fabricators 2 | . . . . . . 2 Repair Stations 1 | . . . . . . 1 Recycling Units 8 | . 2 . . . . 6 Scanalyzers 2 | . . . . . . 2 Garrison Access . | . . . . . . . Total Hacks 110 | . 24 1 26 . . 59 Successful 72 | . 16 1 26 . . 29 Failed 37 | . 7 . . . . 30 Catastrophic 8 | . . . . . . 8 Database Lockouts 1 | . 1 . . . . . Manual 44 | . 14 . . . . 30 Terminals 46 | . 19 . . . . 27 Fabricators 5 | . . . . . . 5 Repair Stations 2 | . . . . . . 2 Recycling Units 18 | . 5 . . . . 13 Scanalyzers 12 | . . . . . . 12 Garrison Access . | . . . . . . . Terminal Hacks 39 | . 5 1 26 . . 7 Record 25 | . 1 . 24 . . . Part Schematic 1 | . . . . . . 1 Robot Analysis 2 | . 2 . . . . . Prototype ID Bank 1 | . 1 . . . . . Open Door 1 | . . . 1 . . . Branch Access Points 1 | . . . . . . 1 Machine Index 1 | . . . . . . 1 Alert Level 1 | . . . . . . 1 Unreport Threat 1 | . . . . . . 1 Locate Traps 1 | . 1 . . . . . Reprogram Traps 1 | . . . . . . 1 Hauler Manifests 1 | . . . . . . 1 Proto ID Catalog 2 | . . 1 1 . . . Fabricator Hacks 3 | . . . . . . 3 Network Status 1 | . . . . . . 1 Load Schematic 1 | . . . . . . 1 Build 1 | . . . . . . 1 Repair Station Hacks 2 | . . . . . . 2 Scan Component 1 | . . . . . . 1 Repair 1 | . . . . . . 1 Recycling Unit Hacks 3 | . 1 . . . . 2 Retrieve Components 3 | . 1 . . . . 2 Scanalyzer 5 | . . . . . . 5 Insert Component 3 | . . . . . . 3 Analyze 2 | . . . . . . 2 Garrison Access Hacks . | . . . . . . . Unauthorized Hacks 20 | . 10 . . . . 10 Terminals 13 | . 8 . . . . 5 Track 2 | . . . . . . 2 Botnet 4 | . 2 . . . . 2 Operators 2 | . 1 . . . . 1 Skim 5 | . 5 . . . . . Fabricators . | . . . . . . . Repair Stations . | . . . . . . . Recycling Units 7 | . 2 . . . . 5 Tunnel 3 | . 2 . . . . 1 Fedlink 4 | . . . . . . 4 Scanalyzers . | . . . . . . . Garrison Access . | . . . . . . . Data Cores Recovered . | . . . . . . . Used . | . . . . . . . Hacking Detections 27 | . 8 . . . . 19 Full Trace Events 4 | . . . . . . 4 Feedback Events 2 | . . . . . . 2 Corruption 1 | . . . . . . 1 Hackware Fried 1 | . . . . . . 1 Feedback Blocked . | . . . . . . . Robot Schematics Acquired . | . . . . . . . Robots Built . | . . . . . . . Authchips . | . . . . . . . Time . | . . . . . . . Total Robot Build Rating . | . . . . . . . Part Schematics Acquired 2 | . . . . . . 2 Parts Built 2 | . . . . . . 2 Authchips . | . . . . . . . Time 47 | . . . . . . 47 Total Part Build Rating 10 | . . . . . . 10 Parts Repaired 1 | . . . . . . 1 Time 35 | . . . . . . 35 Parts Recycled . | . . . . . . . Recycled Matter . | . . . . . . . Retrieved Matter . | . . . . . . . Retrieved Components 16 | . 10 . . . . 6 Parts Scanalyzed 2 | . . . . . . 2 Part Schematics Acquired 1 | . . . . . . 1 Parts Damaged 1 | . . . . . . 1 Bothacking | -11 -10 -10 -8 -6 -6 -6 ------------ Run | Yrd Mat Sub Scr Fac Was Fac Used RIF Installer . | . . . . . . . Robots Hacked 6 | . . . 6 . . . Non-combat 3 | . . . 3 . . . Combat 3 | . . . 3 . . . Robot Hacks Applied 6 | . . . 6 . . . parse_system 6 | . . . 6 . . . Relay Couplers Released . | . . . . . . . Fabnet Peak Effective % . | . . . . . . . Robots Rewired 2 | . . . . . . 2 Allies Hacked . | . . . . . . . Hacks Repelled . | . . . . . . . Allies | -11 -10 -10 -8 -6 -6 -6 -------- Run | Yrd Mat Sub Scr Fac Was Fac Total Allies 3 | . . . . . 1 2 Largest Group 1 | . . . . . 1 1 Highest-Rated Group 41 | . . . . . 31 41 Highest-Rated Ally 41 | . . . . . 31 41 Total Orders . | . . . . . . . Ally Attacks 20 | . . . . . 19 1 Total Damage 322 | . . . . . 322 . Kills 1 | . . . . . 1 . Allies Corrupted . | . . . . . . . Allies Melted . | . . . . . . . Intel | -11 -10 -10 -8 -6 -6 -6 ------- Run | Yrd Mat Sub Scr Fac Was Fac Active Infowar (turns) 9101 | 3 1722 2050 4542 31 75 678 Optics 482 | . . . . . . 482 Sensors 44 | . . . . . . 44 Terrain 176 | . 105 71 . . . . Structural 157 | . . 127 . 12 . 18 Seismic 8272 | 3 1617 1852 4542 31 75 152 Robot Analysis Total 2 | . 2 . . . . . Derelict Logs Recovered 5 | . . 1 4 . . . Drone Launches . | . . . . . . . Drone Recoveries . | . . . . . . . Exploration | -11 -10 -10 -8 -6 -6 -6 ------------- Run | Yrd Mat Sub Scr Fac Was Fac Turns Passed 10227 | 68 1722 2143 4542 31 113 1608 Spaces Moved 5608 | 40 828 758 2056 17 93 1816 Core 142 | . . . . . 74 68 Treads 3053 | . 519 758 1740 17 19 . Legs 812 | 40 309 . . . . 463 Wheels 316 | . . . 316 . . . Hover 316 | . . . . . . 316 Flight 969 | . . . . . . 969 Fastest Speed 25 | 120 120 240 120 162 50 25 Average Speed 159 | 120 179 240 218 162 72 55 Slowest Speed 240 | 120 240 240 240 162 162 180 Overloaded Moves . | . . . . . . . Propulsion Burnouts . | . . . . . . . Robots Hopped 2 | . . . . . . 2 Potential Cave-ins . | . . . . . . . Cave-ins Triggered . | . . . . . . . Exploration Rate (%) 47 | 3 98 28 91 1 71 39 Regions Visited 6 Branch Regions 2 Pre-discovered Areas 10 | . 3 . 6 . . 1 Known Exits Taken 1 | . 1 . . . . . Unknown Exits Taken 3 | 1 . 1 1 . . . Scrap Searched 8 | . . 5 3 . . . Spaces Dug 33 | . 1 . . . . 32 Terrain Destroyed 66 | . 1 . . . 33 32 Melee 32 | . . . . . . 32 Projectile 1 | . 1 . . . . . AOE 33 | . . . . . 33 . Terrain Rammed . | . . . . . . . Walls Destroyed . | . . . . . . . Machines Disabled . | . . . . . . . Actions | -11 -10 -10 -8 -6 -6 -6 --------- Run | Yrd Mat Sub Scr Fac Was Fac Total 6484 | 51 949 982 2114 22 124 2242 Wait 361 | 4 30 115 3 . 7 202 Move 5599 | 39 827 757 2055 17 92 1812 Hop 2 | . . . . . . 2 Pick Up 57 | 2 14 13 15 . 2 11 Fast Attach 46 | 1 2 1 3 . 1 38 Attach 24 | . 1 4 3 5 . 11 Detach 15 | . . 1 1 . 3 10 Swap 50 | . 12 25 5 . 2 6 Drop 65 | . 7 9 23 . 8 18 Fire 111 | 4 53 45 . . 9 . Melee 132 | . . 12 6 . . 114 Ram 2 | . . . . . . 2 Kick 2 | 1 1 . . . . . Crush 2 | . 2 . . . . . Escape Stasis . | . . . . . . . Rewire 16 | . . . . . . 16 Trap . | . . . . . . . Miscellaneous . | . . . . . . . Route ------- -11/Scrapyard -10/Materials (discovered 5 exits: [*Mat x3] / Min / *Sub) -10/Subcaves (discovered 3 exits: *Mat x2 / *Scr) -8/Scraptown (discovered 2 exits: [*Fac x2]) -6/Factory (discovered 3 exits: Fac x2 / Low) -6/Waste -6/Factory (discovered 5 exits: *Fac / Low x2 / Ext x2) History --------- Turn | Location | Event 1 | -11/Scrapyard | Discovered new exit (range 1) 69 | -11/Scrapyard | Entered Materials 317 | -10/Materials | Build established: Mutant 432 | -10/Materials | Discovered new exit (range 5) 721 | -10/Materials | Discovered new exit (range 5) 939 | -10/Materials | Discovered new exit (range 11) 987 | -10/Materials | Central database locked down 1006 | -10/Materials | Identified exit to Subcaves 1006 | -10/Materials | Identified exit to Mines 1136 | -10/Materials | Learned Materials stockpile data 1159 | -10/Materials | Learned location of 2 exits from Mines 1791 | -10/Materials | Entered Subcaves 1792 | -10/Subcaves | Approached by a straggling Scientist 1792 | -10/Subcaves | Identified exit to Materials 2549 | -10/Subcaves | Shifting Twisted Machinery released Mak. Light Armor Plating 2582 | -10/Subcaves | Core integrity fell below 50% 2714 | -10/Subcaves | Visited 4L-MR0's lab 3285 | -10/Subcaves | Scientist uncovered a shortcut to Scraptown 3430 | -10/Subcaves | Learned Materials garrison access intel 3934 | -10/Subcaves | Entered Scraptown 4128 | -8/Scraptown | Scanned Subdweller tech in exchange for log data 4133 | -8/Scraptown | Learned Research garrison access intel 4135 | -8/Scraptown | Learned location of 1 exit from Research 4138 | -8/Scraptown | Learned Research stockpile data 4773 | -8/Scraptown | Visited Fellowship of the Rings 4809 | -8/Scraptown | Visited TADAMA 4909 | -8/Scraptown | Visited The Evicted 4933 | -8/Scraptown | Visited IN-MT5's Study 4995 | -8/Scraptown | Visited Comm Corps 5016 | -8/Scraptown | Visited Spacefarers 5151 | -8/Scraptown | Discovered new exit (range 13) 5500 | -8/Scraptown | Visited UFD Registry 5500 | -8/Scraptown | Registered with UFD as "Beamforce" 5579 | -8/Scraptown | Visited Supply Room 5617 | -8/Scraptown | Visited Sword Containment 5693 | -8/Scraptown | Visited Science Guys 5772 | -8/Scraptown | Visited Infowarlord's Domain 5793 | -8/Scraptown | Found Exp. Terrain Scan Processor 5842 | -8/Scraptown | Visited Research Penetration Think Tank 5901 | -8/Scraptown | Visited A0-MCA Data Center 5946 | -8/Scraptown | Visited Abandonware Association 5977 | -8/Scraptown | Learned abandonware demo "REPAIR.EXE" 5977 | -8/Scraptown | Learned abandonware demo "ERRANTS.EXE" 6037 | -8/Scraptown | Visited LU-1G1's Boring Crew 6174 | -8/Scraptown | Visited Botcube Research 6656 | -8/Scraptown | Given a C- rating by A0-MCA 6659 | -8/Scraptown | Found A0-MCA's Component Scanner 6705 | -8/Scraptown | Visited Cartography Club 6936 | -8/Scraptown | Found Surveybot 17 Chip 7039 | -8/Scraptown | Learned location of Recycling (-8) 7039 | -8/Scraptown | Learned location of Zion (-7) 7039 | -8/Scraptown | Learned location of Extension (-6) 7039 | -8/Scraptown | Learned location of Hub_04(d) (-6) 7039 | -8/Scraptown | Learned location of Testing (-2) 7039 | -8/Scraptown | Learned 8 Factory zone layouts 7039 | -8/Scraptown | Learned 4 Storage zone layouts 7039 | -8/Scraptown | Learned 8 Lower Caves zone layouts 7039 | -8/Scraptown | Learned 16 Lower Caves zone layouts 7039 | -8/Scraptown | Learned 20 Lower Caves zone layouts 7039 | -8/Scraptown | Learned 16 Proximity Caves zone layouts 7039 | -8/Scraptown | Learned 24 Upper Caves zone layouts 7039 | -8/Scraptown | Learned 4 Hub_04(d) zone layouts 7039 | -8/Scraptown | Learned location of 3 exits from Factory 7039 | -8/Scraptown | Learned location of 1 exit from Lower Caves 7039 | -8/Scraptown | Learned location of 2 exits from Lower Caves 7077 | -8/Scraptown | Found Deep Structural Scanner 7135 | -8/Scraptown | Build established: Scavenger-Mutant 7545 | -8/Scraptown | Build established: Mutant 8470 | -8/Scraptown | Discovered new exit (range 5) 8476 | -8/Scraptown | Entered Factory 8476 | -6/Factory | Evolved 8 slots: Propulsion x3, Utility x5 8477 | -6/Factory | Identified exit to Lower Caves 8477 | -6/Factory | Identified exit to Factory 8507 | -6/Factory | Sucked down chute 8507 | -6/Factory | Entered Waste 8508 | -6/Waste | Met a frightened Derelict 8522 | -6/Waste | EMP discharged 8537 | -6/Waste | Spotted C-40 Crusher 8545 | -6/Waste | Spotted C-40 Crusher 8549 | -6/Waste | Allies destroyed C-40 Crusher 8550 | -6/Waste | Spotted C-40 Crusher 8574 | -6/Waste | Spotted C-40 Crusher 8582 | -6/Waste | Crushed by Compactor (1 part destroyed, 1 dropped) 8584 | -6/Waste | Crushed by Compactor (1 part destroyed, 1 dropped) 8588 | -6/Waste | Spotted C-40 Crusher 8596 | -6/Waste | Spotted C-40 Crusher 8612 | -6/Waste | Discovered new exit (range 16) 8615 | -6/Waste | Lost 3 parts (2n1u) 8620 | -6/Waste | Entered Factory 8943 | -6/Factory | Loaded intel: 8 recycling unit locations 9263 | -6/Factory | Build established: Scavenger-Mutant 9455 | -6/Factory | Spotted B-75 Beast 9662 | -6/Factory | Discovered exit to Factory (range 3) 9786 | -6/Factory | System corruption reached 10% 10012 | -6/Factory | Lost 6 parts (3n2u1w) 10035 | -6/Factory | Core integrity fell below 50% 10068 | -6/Factory | Identified exit to Extension 10085 | -6/Factory | System Shield fried by hacking feedback 10121 | -6/Factory | Repaired Cld. Airjet? 10147 | -6/Factory | Fabricated Cmb. Airjet? 10179 | -6/Factory | Destroyed 7 combat bots 10183 | -6/Factory | Cargo convoy interrupted 10205 | -6/Factory | Core integrity fell below 20% 10228 | -6/Factory | Destroyed by P-60 Hacker with Shock Rifle Last Messages --------------- 10194_ K-01 Serf cleans the Fabricator. 10195_ Acquired Cmb. Airjet. 10197_ System corrupted: Imp. VTOL Module rejected. 10197_ Acquired Imp. VTOL Module. 10199_ K-01 Serf cleans the Fabricator. 10199_ Acquired Cmb. Airjet. 10199_ Cld. Airjet destroyed. 10203_ P-60 Hacker resets G-50 Soldier, system corruption cleaned. 10204_ Slug penetrates Wall. 10204_ K-01 Serf cleans the Fabricator. 10205_ P-60 Hacker resets G-50 Soldier, system corruption cleaned. 10205_ Cld. Airjet destroyed. 10205_ Imp. VTOL Module destroyed. 10207_ Sneak attack on T-07 Excavator. 10207_ Destroyed Lgt. Ion Engine. 10207_ Destroyed Wheel. 10208_ K-01 Serf cleans the Fabricator. 10209_ P-60 Hacker resets T-07 Excavator, system corruption cleaned. 10220_ System corrupted: Component data lost. 10222_ K-01 Serf cleans the Power Conduit. Map ----- +----------------------------------------------------+ | kk ##???????????????????????????????????????? | | m%t% ##???????????????????????????????????????? | | ###/#######?????????????????????????????????????? | | # % #?????????????????????????????????????? | | # #?????????????????????????????????????? | | #""" #?????????????????????????????????????? | | #""" #?????????????????????????????????????? | | #"S """ #?????????????????????????????????????? | | #""" """ #?????????????????????????????????????? | | # "" """ #?????????????????????????????????????? | | # #?????????????????????????????????????? | | ###########?????????????????????????????????????? | | ##??????????????????????????????????????????????? | | #???????????????????????????????????????????????? | | #???????????????????????????????????????????????? | | #???????????????????????????????????????????????? | | #???????????????????????????????????????????????? | | #???????????????????????????????????????????????? | | #???????????????????????????????????????????????? | | #???????????????????????????????????????????????? | | ##########??????????????????????????????????????? | | # #??????????????????????????????????????? | | # !!!#??????????????????????????????????????? | | # !!!#??????????????????????????????????????? | | # !!!#?????##############???????????????????? | | # #?????# @ #???????????????????? | | / ####### #???????????????????? | | # + p pp/ " " " " " #???????????????????? | | # # ##### " " " " " #???????????????????? | | # # #???# " " " " " #???????????????????? | | #####+##### #???# " " " " " #???????????????????? | | #?# #???# " " " " " #???????????????????? | | """"" #?# #???# " " " " " #???????????????????? | | """"" #?# #???#A" " " " " #???????????????????? | | """ ?#?# #???# " " " " " #???????????????????? | | ???# #???# " " " " " #???????????????????? | | " """"" ?? ???# k k #???????????????????? | | " """"" ?? ???#######/######???????????????????? | | """ ?? ????????? ????????????????????????? | | *???# #????????? ????????????????????????? | | ???? ??????????? ?????????????????????????? | | ??? ??????????? ?????????????????????????? | | ########??? ??????????? ?????????????????????????? | | ??????????? ???????????#?????????????????????????? | | ??????????? ???????????????????"""???????????????? | | ??????????? ???????????????????"Y"???????????????? | | ???????????#???????????????????"?"???????????????? | | ?????????????????????????????????????????????????? | | ?????????????????????????????????????????????????? | | ?????????????????????????????????????????????????? | +----------------------------------------------------+ Best States ------------- Heat Dissipation 37 Energy Generation 18 Energy Capacity 250 Matter Stores 300 Matter Capacity 300 Sight Range 22 Robot Scan Range 15 Terrain Scan Range 16 Terrain Scan Density 10 Armor Coverage 300 Evasion (%) 65 Targeting Accuracy 20 Melee Accuracy 40 Armor Integrity Analysis 40 Recoil Reduction 4 Offensive Hacking 10 Defensive Hacking 10 Item Schematics ----------------- Multitool | -6/Factory | Scanalyzed Cmb. Airjet | -6/Factory | Hacked Robot Schematics ------------------ None Fabricated ------------ Cmb. Airjet | x2 | -6/Factory Repaired ---------- Cld. Airjet | 15% | -6/Factory Alien Tech Used ----------------- None Achievements -------------- None Challenges ------------ None Game ------ Seed NuclearTacticalLog Manual? 0 Play Time 01:09:19 Cumulative 422.2 hours Start 2025.06.04 @ 20:40:25 End 2025.06.04 @ 21:56:25 Sessions 1 Manual Loads 0 Difficulty Rogue Special Mode None Game No. 213 Rogue 150 Adventurer 63 Explorer 0 Win Type - Total 9 Types 8/0/0/1/0/0/0/0/0/0 Lore% 86 Gallery% 79 Achievement% 66 Wizard Run 0 Options --------- Layout 0 ASCII 0 Keyboard 1 Movement Numpad Keybinds 0 Fullscreen 1 Font 18/Terminus Map View 76x50 Zoom Use 0% Tactical HUD 1 Map Filters NONE Filters NONE Steam 1 RUN: 82a8f74c-4f5c-4ff8-b7aa-1dc02f8f0fe0